Cogmind - Beta 15 @@@ ROGUE MODE // 2025.05.23 @ 10:18:39 Player: 3.14 Result: Destroyed by OV-GGR(j) with Overtuned Pulse Rifle Performance ------------- Evolutions (0) 0 Regions Visited (3) 600 Robots Destroyed (28) 140 Value Destroyed (650) 650 Prototype IDs (0) 0 Alien Tech Used (0) 0 Bonus (-168) -168 TOTAL SCORE: 1222 Bonus ------- Friendly Fire -168 Cogmind --------- Core Integrity 0/250 Matter 263/300 Energy 200/200 System Corruption 0% Temperature Cool (49) Movement Treading (160) Location -7/Recycling Parts ------- > --- POWER (1) -------- Subdweller Power Source > --- PROPULSION (2) --- Light Treads > --- UTILITY (2) ------ Core Analyzer Light Armor Plating > --- WEAPON (2) ------- Assault Rifle Assault Rifle > --- INVENTORY (5) ---- Light Ion Engine Compact Wheel Chainsword Peak State ------------ > --- POWER ------------ Subdweller Power Source > --- PROPULSION ------- Compact Wheel Compact Wheel > --- UTILITY ---------- Core Analyzer Reflective Plating > --- WEAPON ----------- Assault Rifle Chainsword > --- INVENTORY -------- Light Ion Engine Light Treads Light Armor Plating Beam Rifle Assault Rifle [Rating: 16] Favorites ----------- Power Ion Engine Engine Ion Engine Propulsion Aluminum Leg Treads Light Treads Leg Aluminum Leg Wheel Compact Wheel Utility Humpback Storage Humpback Processor Core Analyzer Protection Propulsion Shielding Weapon Assault Rifle Energy Gun Subdweller Laser Ballistic Gun Assault Rifle Special Weapon Mining Laser Slashing Weapon Chainsword Build | -11 -10 -10 -7 ------- Run | Yrd Mat Sub Rec Slots Evolved . | . . . . Power . | . . . . Propulsion . | . . . . Utility . | . . . . Weapon . | . . . . Parts Attached 32 | 2 9 7 14 Power 4 | . 2 . 2 Engine 4 | . 2 . 2 Core . | . . . . Reactor . | . . . . Propulsion 11 | 2 2 2 5 Treads 3 | 2 . . 1 Leg 4 | . 2 1 1 Wheel 4 | . . 1 3 Hover . | . . . . Flight . | . . . . Utility 6 | . 2 1 3 Device . | . . . . Storage 2 | . 1 1 . Processor 1 | . . . 1 Hackware . | . . . . Protection 3 | . 1 . 2 Artifact . | . . . . Weapon 11 | . 3 4 4 Energy Gun 1 | . . . 1 Energy Cannon . | . . . . Ballistic Gun 8 | . 3 3 2 Ballistic Cannon . | . . . . Launcher . | . . . . Special Weapon 1 | . . 1 . Impact Weapon . | . . . . Slashing Weapon 1 | . . . 1 Piercing Weapon . | . . . . Special Melee Weapon . | . . . . Unidentified Prototypes . | . . . . Parts Lost 9 | . 1 3 5 Power 2 | . 1 . 1 Propulsion 3 | . . 1 2 Utility 2 | . . 1 1 Weapon 2 | . . 1 1 Highest Loss Streak 3 | . 1 1 3 To Critical Strikes . | . . . . Average Backups 12 | 6 7 10 16 Power . | 1 . . 1 Propulsion 2 | 4 2 2 1 Utility 3 | . . 1 5 Weapon 6 | 1 4 5 8 Tool/Special . | . . . . Unused Backups 14 | . 5 . 9 Power . | . . . . Propulsion 3 | . 2 . 1 Utility 4 | . 1 . 3 Weapon 7 | . 2 . 5 Tool/Special . | . . . . Average Slot Usage (%) 87 | . 91 89 84 Engine 13 | . 14 14 13 Treads 1 | . 4 . . Leg 15 | . 23 18 9 Wheel 10 | . . 9 18 Storage 13 | . 14 14 13 Protection 3 | . 5 4 . Energy Gun 3 | . . . 6 Ballistic Gun 23 | . 28 23 20 Special Weapon 1 | . . 4 . Peak Build Rating 16 | 6 7 10 16 Average Rating 9 | 6 6 8 11 On Entrance 7 | 6 6 7 10 Naked Turns . | . . . . Heaviest Build 211 | 11 15 211 211 Greatest Support 40 | 40 40 20 32 Greatest Overweight (x) 12 | . . 10 12 Average Overweight (x) 3 | . . 5 7 Largest Inventory Capacity 35 | 8 8 35 35 Average Capacity 23 | 8 8 26 33 Most Carried 19 | 6 8 14 19 Average Carried 12 | 6 7 10 16 Final Capacity 35 | 8 8 35 5 Final Carried 13 | 6 8 13 3 Class Distribution -------------------- 58% | Hauler-Mutant 41% | Mutant Dominant Class ---------------- Mutant | -10/Materials Hauler-Mutant | -10/Subcaves Hauler-Mutant | -7/Recycling Resources | -11 -10 -10 -7 ----------- Run | Yrd Mat Sub Rec Matter Collected 1034 | 189 331 254 260 Remotely . | . . . . Salvage Created 1167 | . 487 270 410 Parts 72 | . 30 21 21 Haulers Intercepted 1 | . 1 . . Recyclers Shooed 2 | . 1 . 1 Parts Field Recycled . | . . . . Retrieved Matter . | . . . . Parts Self-Destructed 11 | . . 11 . Prevented . | . . . . Kills | -11 -10 -10 -7 ------- Run | Yrd Mat Sub Rec Combat Hostiles Destroyed 19 | . 9 8 2 Melee 1 | . . . 1 Guns 18 | . 9 8 1 Classes Destroyed 9 | . 5 2 2 Worker 1 | . 1 . . Hauler 1 | . 1 . . Recycler 4 | . 1 . 3 Turret 2 | . . 2 . Swarmer 7 | . 3 4 . Grunt 6 | . 6 . . Sentry 1 | . . . 1 Subdweller 4 | . . 4 . Scrapper 2 | . . . 2 Best Kill Streak 4 | . 3 4 2 Combat Bots Only 3 | . 3 2 1 Max Kills in Single Turn 1 | . 1 1 1 Gunslinging . | . . . . Exploded . | . . . . Melee 1 | . . . 1 Uniques/NPCs Destroyed . | . . . . Combat | -11 -10 -10 -7 -------- Run | Yrd Mat Sub Rec Hostile Shots Fired 230 | . 63 88 79 Missed 76 | . 17 35 24 Hits 154 | . 46 53 55 Projectile 154 | . 46 53 55 Critical Strikes 5 | . 2 1 2 Actively Blocked 1 | . 1 . . Damage Taken 1819 | . 555 588 676 Core 250 | . 69 76 105 Absorbed by Shields . | . . . . Redirected to Shielding 57 | . 18 39 . Ignored by Resistances 31 | . . . 31 Core Remaining (%) 100 | 100 . . . Volleys Fired 119 | . 49 43 27 Largest 2 | . 2 2 2 Hottest 100 | . 40 100 80 Shots Fired 228 | . 98 77 53 Gun 219 | . 98 68 53 Cannon . | . . . . Launcher . | . . . . Special 9 | . . 9 . Kinetic 206 | . 98 68 40 Thermal 22 | . . 9 13 Explosive . | . . . . Electromagnetic . | . . . . Robot Hit Streak 22 | . 13 22 8 Robot Miss Streak 4 | . 4 2 4 Penetration Max . | . . . . Secondary Targets 5 | . 3 2 . Max Gunslinging Chain 1 | . 1 1 . Shots Hit Robots 141 | . 59 44 38 Core Hits 53 | . 23 17 13 Critical Kills . | . . . . Critical Parts Destroyed . | . . . . Critical Strikes . | . . . . Melee Attacks 6 | . . . 6 Impact . | . . . . Slashing 6 | . . . 6 Piercing . | . . . . Sneak Attacks 1 | . . . 1 Combat Hostiles . | . . . . Follow-up Attacks . | . . . . Damage Inflicted 2050 | . 754 623 673 Guns 1814 | . 721 623 470 Cannons . | . . . . Explosions . | . . . . Melee 203 | . . . 203 Ramming 33 | . 33 . . Kinetic 1674 | . 721 623 330 Thermal 140 | . . . 140 Explosive . | . . . . Electromagnetic . | . . . . Impact . | . . . . Slashing 203 | . . . 203 Piercing . | . . . . Highest Corruption . | . . . . Average Corruption . | . . . . Corruption Purged . | . . . . Corruption Blocked . | . . . . Overload Shots . | . . . . Overflow Damage . | . . . . Projectiles . | . . . . Explosions . | . . . . Melee . | . . . . Knockbacks 1 | . 1 . . Impact 1 | . 1 . . Kinetic . | . . . . Secondary . | . . . . Self-Inflicted Damage . | . . . . Shots . | . . . . Rammed 1 | . 1 . . Targets Rammed 10 | . 10 . . Kicked 9 | . 9 . . Crushed . | . . . . Highest Temperature 232 | . 19 232 152 Average Temperature 62 | . 9 123 76 Received Heat Transfer 1092 | . 246 490 356 Siege Activations . | . . . . Martial Activations . | . . . . Shielding Activations . | . . . . Robots Disrupted . | . . . . Combat Hostiles . | . . . . Robots Corrupted . | . . . . Combat Hostiles . | . . . . Parts Fried . | . . . . Impact Corruptions . | . . . . Robots Melted . | . . . . Combat Hostiles . | . . . . Parts Melted . | . . . . Heat Transferred 175 | . . . 175 Parts Sabotaged . | . . . . Parts Stolen . | . . . . Parts Stripped . | . . . . Power Chain Reactions . | . . . . Alert | -11 -10 -10 -7 ------- Run | Yrd Mat Sub Rec Maximum Alert Level . | . . . . Low Security (%) 100 | 100 100 . 100 Level 1 . | . . . . Level 2 . | . . . . Level 3 . | . . . . Level 4 . | . . . . Level 5 . | . . . . High Security . | . . . . Max Security . | . . . . Peak Influence 98 | . 98 . 92 Initial 72 | . . . 72 Average 13 | . 23 . 7 Influence Increases 571 | . 295 210 66 Destroy 0b10 Robot/C 320 | . 180 120 20 Destroy 0b10 Robot/NC 30 | . 15 . 15 Destroy Leader 42 | . 42 . . Successful Hack 12 | . 12 . . Select Force Hacks 30 | . . . 30 Destroy Structure 2 | . 1 . 1 Lose Combat Pursuer 135 | . 45 90 . Influence Decreases 571 | . 227 126 218 Entered New Map 113 | . . 33 80 Time Decay 437 | . 217 83 137 Lost Part 21 | . 10 10 1 Squads Dispatched 2 | . 2 . . Investigation . | . . . . Extermination . | . . . . Reinforcement 2 | . 2 . . Assault . | . . . . Garrison . | . . . . Intercept . | . . . . Searches Triggered . | . . . . Construction Impeded . | . . . . Haulers Reinforced . | . . . . Active Scanning Responses . | . . . . Cargo Convoy Interrupts . | . . . . Stealth | -11 -10 -10 -7 --------- Run | Yrd Mat Sub Rec Distress Signals 4 | . 3 . 1 Communications Jammed . | . . . . Distress Signals . | . . . . Times Spotted 39 | . 24 12 3 Peak Tracking Total 4 | . 4 4 3 Tactical Retreats 5 | . 2 3 . Traps | -11 -10 -10 -7 ------- Run | Yrd Mat Sub Rec Traps Triggered . | . . . . Indirectly . | . . . . Trap Hack Attempts . | . . . . Triggered . | . . . . Disarmed . | . . . . Reprogrammed . | . . . . Reused . | . . . . Traps Extracted . | . . . . Installed . | . . . . Triggered . | . . . . Machines | -11 -10 -10 -7 ---------- Run | Yrd Mat Sub Rec Machines Disabled 1 | . . 1 . Max in Single Turn 1 | . . 1 . Machines Repaired . | . . . . Machines Dismantled . | . . . . Machines Sabotaged . | . . . . Overloaded Fab Kills . | . . . . Hacking | -11 -10 -10 -7 --------- Run | Yrd Mat Sub Rec Machines Accessed 8 | . 3 . 5 Terminals 5 | . 3 . 2 Fabricators . | . . . . Repair Stations . | . . . . Recycling Units 1 | . . . 1 Scanalyzers . | . . . . Garrison Access . | . . . . Total Hacks 40 | . 11 . 29 Successful 29 | . 4 . 25 Failed 11 | . 7 . 4 Catastrophic 1 | . . . 1 Database Lockouts . | . . . . Manual 16 | . 11 . 5 Terminals 14 | . 11 . 3 Fabricators . | . . . . Repair Stations . | . . . . Recycling Units 2 | . . . 2 Scanalyzers . | . . . . Garrison Access . | . . . . Terminal Hacks 25 | . 1 . 24 Record 24 | . . . 24 Robot Analysis 1 | . 1 . . Fabricator Hacks . | . . . . Repair Station Hacks . | . . . . Recycling Unit Hacks . | . . . . Scanalyzer . | . . . . Garrison Access Hacks . | . . . . Unauthorized Hacks 4 | . 3 . 1 Terminals 3 | . 3 . . Operators 1 | . 1 . . Skim 2 | . 2 . . Fabricators . | . . . . Repair Stations . | . . . . Recycling Units 1 | . . . 1 Tunnel 1 | . . . 1 Scanalyzers . | . . . . Garrison Access . | . . . . Data Cores Recovered . | . . . . Used . | . . . . Hacking Detections 5 | . 3 . 2 Full Trace Events . | . . . . Feedback Events . | . . . . Feedback Blocked . | . . . . Robot Schematics Acquired . | . . . . Robots Built . | . . . . Authchips . | . . . . Time . | . . . . Total Robot Build Rating . | . . . . Part Schematics Acquired . | . . . . Parts Built . | . . . . Authchips . | . . . . Time . | . . . . Total Part Build Rating . | . . . . Parts Repaired . | . . . . Time . | . . . . Parts Recycled . | . . . . Recycled Matter . | . . . . Retrieved Matter . | . . . . Retrieved Components . | . . . . Parts Scanalyzed . | . . . . Part Schematics Acquired . | . . . . Parts Damaged . | . . . . Bothacking | -11 -10 -10 -7 ------------ Run | Yrd Mat Sub Rec Used RIF Installer . | . . . . Robots Hacked . | . . . . Non-combat . | . . . . Combat . | . . . . Robot Hacks Applied . | . . . . Relay Couplers Released . | . . . . Fabnet Peak Effective % . | . . . . Robots Rewired . | . . . . Allies Hacked . | . . . . Hacks Repelled . | . . . . Allies | -11 -10 -10 -7 -------- Run | Yrd Mat Sub Rec Total Allies . | . . . . Largest Group . | . . . . Highest-Rated Group . | . . . . Highest-Rated Ally . | . . . . Total Orders . | . . . . Ally Attacks . | . . . . Total Damage . | . . . . Kills . | . . . . Allies Corrupted . | . . . . Allies Melted . | . . . . Intel | -11 -10 -10 -7 ------- Run | Yrd Mat Sub Rec Active Infowar (turns) . | . . . . Robot Analysis Total 1 | . 1 . . Derelict Logs Recovered . | . . . . Drone Launches . | . . . . Drone Recoveries . | . . . . Exploration | -11 -10 -10 -7 ------------- Run | Yrd Mat Sub Rec Turns Passed 3364 | 3 1084 753 1524 Spaces Moved 1464 | 1 647 344 472 Core 4 | . . . 4 Treads 58 | 1 57 . . Legs 769 | . 590 158 21 Wheels 633 | . . 186 447 Hover . | . . . . Flight . | . . . . Fastest Speed 100 | 160 120 120 100 Average Speed 166 | 160 123 170 223 Slowest Speed 820 | 160 160 820 820 Overloaded Moves . | . . . . Propulsion Burnouts . | . . . . Robots Hopped . | . . . . Potential Cave-ins . | . . . . Cave-ins Triggered . | . . . . Exploration Rate (%) 39 | 2 68 22 67 Regions Visited 3 Branch Regions 2 Pre-discovered Areas 1 | . . . 1 Known Exits Taken . | . . . . Unknown Exits Taken 3 | 1 1 1 . Scrap Searched 2 | . . 2 . Spaces Dug . | . . . . Terrain Destroyed 1 | . . 1 . Melee . | . . . . Projectile 1 | . . 1 . AOE . | . . . . Terrain Rammed . | . . . . Walls Destroyed . | . . . . Machines Disabled . | . . . . Actions | -11 -10 -10 -7 --------- Run | Yrd Mat Sub Rec Total 2131 | 2 840 411 878 Wait 441 | . 107 3 331 Move 1461 | . 646 343 472 Hop . | . . . . Pick Up 33 | . 9 10 14 Fast Attach 8 | . 1 1 6 Attach 10 | . 1 2 7 Detach . | . . . . Swap 21 | 2 7 8 4 Drop 22 | . 10 1 11 Fire 119 | . 49 43 27 Melee 6 | . . . 6 Ram . | . . . . Kick 9 | . 9 . . Crush 1 | . 1 . . Escape Stasis . | . . . . Rewire . | . . . . Trap . | . . . . Miscellaneous . | . . . . Route ------- -11/Scrapyard -10/Materials (discovered 3 exits: [*Mat] / [*Min] / [*Sub]) -10/Subcaves (discovered 2 exits: *Rec / [*Scr]) -7/Recycling (discovered 1 exit: [*Fac]) History --------- Turn | Location | Event 4 | -11/Scrapyard | Discovered new exit (range 0) 4 | -11/Scrapyard | Entered Materials 286 | -10/Materials | Discovered new exit (range 15) 322 | -10/Materials | Build established: Mutant 1066 | -10/Materials | Discovered new exit (range 5) 1077 | -10/Materials | Discovered new exit (range 10) 1088 | -10/Materials | Entered Subcaves 1089 | -10/Subcaves | Approached by a straggling Scientist 1626 | -10/Subcaves | Build established: Hauler-Mutant 1681 | -10/Subcaves | Scientist uncovered a shortcut to Scraptown 1769 | -10/Subcaves | Core integrity fell below 50% 1797 | -10/Subcaves | Discovered new exit (range 10) 1841 | -10/Subcaves | Entered Recycling 2612 | -7/Recycling | Discovered new exit (range 9) 2752 | -7/Recycling | Scanned before Scraplab entrance 2778 | -7/Recycling | Entered Scraplab 2807 | -7/Recycling | Discovered new exit (range 3) 3327 | -7/Recycling | Angered Scraplab inhabitants 3337 | -7/Recycling | Core integrity fell below 20% 3365 | -7/Recycling | Destroyed by OV-GGR(j) with Overtuned Pulse Rifle Last Messages --------------- 03299_ 55-PDU(c) is busy at their terminal. 03301_ Acquired Core Analyzer. 03305_ Dropped Huge Storage Unit. 03306_ Acquired Lgt. Treads. 03312_ Dropped Beam Rifle. 03313_ Acquired Assault Rifle. 03326_ Sneak attack on OV-HEB(j). 03326_ OV-HEB(j) destroyed. 03327_ Scrap Suit violently self-destructs. 03341_ 36-X8E(j) heat spikes uncontrollably. 03342_ Com. Wheel destroyed. 03343_ Critical hit (Burn: +50). 03343_ 36-X8E(j) destroyed. 03348_ Acquired 45 matter. 03352_ Scrap Suit violently self-destructs. 03354_ OV-GGR(j): "Defend the Scraplab!" 03356_ Assault Rifle destroyed. 03359_ Reflective Plating destroyed. 03363_ Critical hit (Burn: +50). 03364_ OV-GGR(j) heat damages Mak. Salvage Targeting Computer. Map ----- +----------------------------------------------------+ | | | | | | | | | | | | | | | | | | | | | | | | | | | | | | | | | | | | | | | | | | | ??????????????????????????############???????????? | | ??????????????????????????#"""""""#< #???????????? | | ??????????????????????????# " X " ## #???????????? | | ????????????????????####### j][ #???????????? | | ???????????????????##[*% @/ c ! ! #???????????? | | ???????????????????#%=##### c [!|! "#???????????? | | ???????????????????##!#???# [[ ! ""#???????????? | | ????????????????????#!#???#"& "&[X ""#???????????? | | ????????????????????# #???#"""""""" #???????????? | | ?????????????????#####################???????????? | | ?????????????????# #???????????????????????? | | ?????????????????# #???????????????????????? | | ?????????????????# #???????????????????????? | | ?????????????????# #???????????????????????? | | ?????????????????####+####???????????????????????? | | ????????????????????# #??????????????????????????? | | ????????????????????# #??????????????????????????? | | ????????????????????# #??????????????????????????? | | ?????????????????####+#####??????????????????????? | | ?????????????????# #??????????????????????? | | ?????????????????# !#??????????????????????? | | ?????????????????# #??????????????????????? | | ?????????????????# ! ! ! #??????????????????????? | | ?????????????????#! #??????????????????????? | | ?????????????????# #??????????????????????? | | ?????????????????#! #??????????????????????? | | ?????????????????# ! #??????????????????????? | | ?????????????????#! !!#??????????????????????? | | ????????????????########+##??????????????????????? | +----------------------------------------------------+ Best States ------------- Heat Dissipation 25 Energy Generation 15 Energy Capacity 250 Matter Stores 300 Matter Capacity 300 Sight Range 16 Terrain Scan Density 10 Armor Coverage 150 Resistance: TH 10 Propulsion Shielding 33 Evasion (%) 55 Core Analysis 6 Recoil Reduction 2 Item Schematics ----------------- None Robot Schematics ------------------ None Fabricated ------------ Nothing Repaired ---------- Nothing Alien Tech Used ----------------- None Achievements -------------- None Challenges ------------ None Game ------ Seed VoltaicPowerWell Manual? 0 Play Time 00:13:58 Cumulative 920.6 hours Start 2025.05.23 @ 10:04:46 End 2025.05.23 @ 10:18:39 Sessions 1 Manual Loads 0 Difficulty Rogue Special Mode None Game No. 1502 Rogue 1502 Adventurer 0 Explorer 0 Win Type - Total 91 Types 54/1/16/14/4/0/0/1/0/1 Lore% 89 Gallery% 83 Achievement% 85 Wizard Run 0 Options --------- Layout 0 ASCII 1 Keyboard 0 Movement Numpad Keybinds 1 Fullscreen 2 Font 18/SmallcapsGlow Map View 76x50 Zoom Use 0% Tactical HUD 1 Map Filters NONE Filters NONE Steam 1 RUN: d06786d4-f590-478d-85ba-0efb32b17bc8